fUSD/lending_fUSD_20241224
["ID","MTS","AMOUNT","RATE_DAILY","PERIOD"]
[346486883,1735006233980,-502.09995529,0.00013698,2]
[346486884,1735006233989,-500.0,0.00013698,2]
[346486885,1735006233999,-500.0,0.00013698,2]
[346486886,1735006234008,-504.69472909,0.00013698,2]
[346486887,1735006234017,-513.5,0.00013698,2]
[346486888,1735006234027,-500.0,0.00013698,2]
[346486889,1735006234036,-500.0,0.00013698,2]
[346486890,1735006234046,-508.46642528,0.00013698,2]
[346486891,1735006234055,-506.18037787,0.00013698,2]
[346486892,1735006234065,-506.56401347,0.00013698,2]
[346486893,1735006234075,-1001.85,0.00013698,2]
[346486894,1735006234089,-502.78325619,0.00013698,2]
[346486895,1735006234098,-504.10411604,0.00013698,2]
[346486896,1735006234107,-510.50814388,0.00013698,2]
[346486897,1735006234117,-500.0,0.00013698,2]
[346486898,1735006234127,-500.0,0.00013698,2]
[346486899,1735006234138,-500.0,0.00013698,2]
[346486900,1735006234148,-604.94177357,0.00013698,2]
[346486901,1735006234159,-500.0,0.00013698,2]
[346486902,1735006234170,-1375.48,0.00013698,2]
[346486903,1735006234180,-624.05,0.00013698,2]
[346486904,1735006234189,-500.0,0.00013698,2]
[346486905,1735006234199,-500.0,0.00013698,2]
[346486906,1735006234210,-503.32762537,0.00013698,2]
[346486907,1735006234220,-1200.43,0.00013698,2]
[346486908,1735006234230,-698.39,0.00013698,2]
[346486909,1735006234240,-508.72187354,0.00013698,2]
[346486910,1735006234250,-505.0949287,0.00013698,2]
[346486911,1735006234259,-403.39585518,0.00013698,2]
[346486912,1735006234269,-500.0,0.00013698,2]
[346486913,1735006234278,-500.0,0.00013698,2]
[346486914,1735006234288,-501.34537051,0.00013698,2]
[346486915,1735006234298,-501.05188455,0.00013698,2]
[346486916,1735006234308,-500.0,0.00013698,2]
[346486917,1735006234317,-850.05,0.00013698,2]
[346486918,1735006234327,-1632.35,0.00013698,2]
[346486919,1735006234337,-768.01,0.00013698,2]
[346486920,1735006234347,-500.0,0.00013698,2]
[346486921,1735006234358,-506.79952363,0.00013698,2]
[346486922,1735006234368,-500.0,0.00013698,2]
[346486923,1735006234377,-500.0,0.00013698,2]
[346486924,1735006234387,-745.23,0.00013698,2]
[346486925,1735006234397,-500.0,0.00013698,2]
[346486926,1735006234407,-508.9087168,0.00013698,2]
[346486927,1735006234417,-500.0,0.00013698,2]
[346486928,1735006234427,-500.0,0.00013698,2]
[346486929,1735006234436,-500.0,0.00013698,2]
[346486930,1735006234446,-779.88,0.00013698,2]
[346486931,1735006234456,-570.22,0.00013698,2]
[346486932,1735006234466,-500.0,0.00013698,2]
[346486933,1735006234476,-504.93035619,0.00013698,2]
[346486934,1735006234486,-621.81,0.00013698,2]
[346486935,1735006234495,-696.08,0.00013698,2]
[346486936,1735006234505,-1109.36,0.00013698,2]
[346486937,1735006234514,-500.0,0.00013698,2]
[346486938,1735006234524,-500.0,0.00013698,2]
[346486939,1735006234534,-268.70179891,0.00013698,2]
[346486940,1735006234543,-500.0,0.00013698,2]
[346486941,1735006234553,-500.0,0.00013698,2]
[346486942,1735006234563,-500.0,0.00013698,2]
[346486943,1735006234572,-512.74311663,0.00013698,2]
[346486944,1735006234582,-500.0,0.00013698,2]
[346486945,1735006234591,-726.13,0.00013698,2]
[346486946,1735006234601,-1085.67,0.00013698,2]
[346486947,1735006234610,-500.0,0.00013698,2]
[346486948,1735006234619,-500.0,0.00013698,2]
[346486949,1735006234629,-500.0,0.00013698,2]
[346486950,1735006234638,-863.91,0.00013698,2]
[346486951,1735006234647,-567.51,0.00013698,2]
[346486952,1735006234657,-602.18,0.00013698,2]
[346486953,1735006234666,-500.0,0.00013698,2]
[346486954,1735006234675,-570.44,0.00013698,2]
[346486955,1735006234684,-500.0,0.00013698,2]
[346486956,1735006234693,-596.85,0.00013698,2]
[346486957,1735006234703,-500.0,0.00013698,2]
[346486958,1735006234712,-884.62,0.00013698,2]
[346486959,1735006234725,-510.16591167,0.00013698,2]
[346486960,1735006234739,-500.0,0.00013698,2]
[346486961,1735006234748,-519.96370341,0.00013698,2]
[346486962,1735006234757,-603.12,0.00013698,2]
[346486963,1735006234766,-500.0,0.00013698,2]
[346486964,1735006234775,-597.78,0.00013698,2]
[346486965,1735006234785,-500.0,0.00013698,2]
[346486966,1735006234795,-1017.19,0.00013698,2]
[346486967,1735006234804,-1244.3,0.00013698,2]
[346486968,1735006234813,-500.0,0.00013698,2]
[346486969,1735006234823,-572.91,0.00013698,2]
[346486970,1735006234833,-500.0,0.00013698,2]
[346486971,1735006234842,-888.57,0.00013698,2]
[346486972,1735006234851,-500.0,0.00013698,2]
[346486973,1735006234862,-591.9,0.00013698,2]
[346486974,1735006234872,-500.0,0.00013698,2]
[346486975,1735006234881,-500.0,0.00013698,2]
[346486976,1735006234891,-500.0,0.00013698,2]
[346486977,1735006234901,-1092.52,0.00013698,2]
[346486978,1735006234910,-529.98,0.00013698,2]
[346486979,1735006234919,-419.55246756,0.00013698,2]
[346486980,1735006234928,-745.85,0.00013698,2]
[346486981,1735006234938,-617.15,0.00013698,2]
[346486982,1735006234948,-652.48,0.00013698,2]
[346486983,1735006234957,-500.0,0.00013698,2]
[346486984,1735006234968,-828.46,0.00013698,2]
[346486985,1735006234977,-500.0,0.00013698,2]
[346486986,1735006234986,-500.0,0.00013698,2]
[346486987,1735006234995,-1044.52,0.00013698,2]
[346486988,1735006235004,-500.0,0.00013698,2]
[346486989,1735006235014,-595.67,0.00013698,2]
[346486990,1735006235023,-500.0,0.00013698,2]
[346486991,1735006235032,-1055.87,0.00013698,2]
[346486992,1735006235041,-443.05604689,0.00013698,2]
[346486993,1735006235050,-500.0,0.00013698,2]
[346486994,1735006235059,-500.0,0.00013698,2]
[346486995,1735006235068,-597.29,0.00013698,2]
[346486996,1735006235077,-500.0,0.00013698,2]
[346486997,1735006235091,-604.39,0.00013698,2]
[346486998,1735006235100,-240.45462404,0.00013698,2]
[346486999,1735006235109,-500.0,0.00013698,2]
[346487000,1735006235117,-500.0,0.00013698,2]
[346487001,1735006235127,-644.29,0.00013698,2]
[346487002,1735006235138,-500.0,0.00013698,2]
[346487003,1735006235147,-500.0,0.00013698,2]
[346487004,1735006235156,-500.0,0.00013698,2]
[346487005,1735006235167,-500.0,0.00013698,2]
[346487006,1735006235176,-618.99,0.00013698,2]
[346487007,1735006235185,-500.0,0.00013698,2]
[346487008,1735006235195,-674.89,0.00013698,2]
[346487009,1735006235204,-500.0,0.00013698,2]
[346487010,1735006235213,-500.0,0.00013698,2]
[346487011,1735006235223,-1295.56,0.00013698,2]
[346487012,1735006235232,-500.0,0.00013698,2]
[346487013,1735006235242,-500.0,0.00013698,2]
[346487014,1735006235251,-1408.87,0.00013698,2]
[346487015,1735006235260,-500.0,0.00013698,2]
[346487016,1735006235270,-653.87,0.00013698,2]
[346487017,1735006235279,-500.0,0.00013698,2]
[346487018,1735006235289,-535.94,0.00013698,2]
[346487019,1735006235298,-534.71720984,0.00013698,2]
[346487020,1735006235308,-500.0,0.00013698,2]
[346487021,1735006235317,-500.0,0.00013698,2]
[346487022,1735006235327,-611.36,0.00013698,2]
[346487023,1735006235336,-1124.15,0.00013698,2]
[346487024,1735006235345,-500.0,0.00013698,2]
[346487025,1735006235355,-512.58,0.00013698,2]
[346487026,1735006235365,-859.65,0.00013698,2]
[346487027,1735006235375,-500.0,0.00013698,2]
[346487028,1735006235384,-500.0,0.00013698,2]
[346487029,1735006235393,-993.15,0.00013698,2]
[346487030,1735006235402,-500.0,0.00013698,2]
[346487031,1735006235412,-502.44432836,0.00013698,2]
[346487032,1735006235421,-673.77,0.00013698,2]
[346487033,1735006235430,-1011.06,0.00013698,2]
[346487034,1735006235440,-500.0,0.00013698,2]
[346487035,1735006235449,-1553.89,0.00013698,2]
[346487036,1735006235458,-500.0,0.00013698,2]
[346487037,1735006235468,-500.0,0.00013698,2]
[346487038,1735006235477,-1486.77,0.00013698,2]
[346487039,1735006235486,-500.0,0.00013698,2]
[346487040,1735006235495,-1280.16,0.00013698,2]
[346487041,1735006235505,-500.0,0.00013698,2]
[346487042,1735006235514,-593.51,0.00013698,2]
[346487043,1735006235523,-500.0,0.00013698,2]
[346487044,1735006235532,-1169.3,0.00013698,2]
[346487045,1735006235542,-500.0,0.00013698,2]
[346487046,1735006235551,-500.0,0.00013698,2]
[346487047,1735006235560,-1417.31,0.00013698,2]
[346487048,1735006235570,-265.84454787,0.00013698,2]
[346487049,1735006235579,-500.0,0.00013698,2]
[346487050,1735006235588,-978.54,0.00013698,2]
[346487051,1735006235597,-500.0,0.00013698,2]
[346487052,1735006235607,-500.0,0.00013698,2]
[346487053,1735006235616,-500.0,0.00013698,2]
[346487054,1735006235626,-500.0,0.00013698,2]
[346487055,1735006235635,-873.36,0.00013698,2]
[346487056,1735006235644,-500.0,0.00013698,2]
[346487057,1735006235654,-1118.27,0.00013698,2]
[346487058,1735006235663,-814.63,0.00013698,2]
[346487059,1735006235672,-500.0,0.00013698,2]
[346487060,1735006235681,-512.21248527,0.00013698,2]
[346487061,1735006235690,-500.0,0.00013698,2]
[346487062,1735006235700,-753.08,0.00013698,2]
[346487063,1735006235710,-607.4,0.00013698,2]
[346487064,1735006235719,-500.0,0.00013698,2]
[346487065,1735006235728,-754.7,0.00013698,2]
[346487066,1735006235738,-581.7,0.00013698,2]
[346487067,1735006235748,-500.0,0.00013698,2]
[346487068,1735006235758,-734.53,0.00013698,2]
[346487069,1735006235767,-500.0,0.00013698,2]
[346487070,1735006235776,-1206.35,0.00013698,2]
[346487071,1735006235786,-772.93,0.00013698,2]
[346487072,1735006235795,-500.0,0.00013698,2]
[346487073,1735006235805,-502.00739211,0.00013698,2]
[346487074,1735006235815,-500.0,0.00013698,2]
[346487075,1735006235824,-500.0,0.00013698,2]
[346487076,1735006235834,-500.0,0.00013698,2]
[346487077,1735006235843,-748.26,0.00013698,2]
[346487078,1735006235852,-500.0,0.00013698,2]
[346487079,1735006235861,-533.15,0.00013698,2]
[346487080,1735006235870,-845.92,0.00013698,2]
[346487081,1735006235879,-500.0,0.00013698,2]
[346487082,1735006235892,-839.07,0.00013698,2]
[346487083,1735006235911,-500.0,0.00013698,2]
[346487084,1735006235929,-500.0,0.00013698,2]
[346487085,1735006235939,-500.0,0.00013698,2]
[346487086,1735006235950,-500.0,0.00013698,2]
[346487087,1735006235961,-500.0,0.00013698,2]
[346487088,1735006235972,-500.0,0.00013698,2]
[346487089,1735006235983,-500.0,0.00013698,2]
[346487090,1735006235994,-538.43,0.00013698,2]
[346487091,1735006236004,-500.0,0.00013698,2]
[346487092,1735006236014,-560.56,0.00013698,2]
[346487093,1735006236023,-500.0,0.00013698,2]
[346487094,1735006236032,-500.0,0.00013698,2]
[346487095,1735006236042,-683.35,0.00013698,2]
[346487096,1735006236051,-500.0,0.00013698,2]
[346487097,1735006236061,-500.0,0.00013698,2]
[346487098,1735006236070,-500.0,0.00013698,2]
[346487099,1735006236081,-500.0,0.00013698,2]
[346487100,1735006236093,-627.72,0.00013698,2]
[346487101,1735006236102,-658.93,0.00013698,2]
[346487102,1735006236111,-500.0,0.00013698,2]
[346487103,1735006236120,-687.16,0.00013698,2]
[346487104,1735006236130,-726.49,0.00013698,2]
[346487105,1735006236139,-500.0,0.00013698,2]
[346487106,1735006236149,-853.83,0.00013698,2]
[346487107,1735006236159,-500.0,0.00013698,2]
[346487108,1735006236169,-500.0,0.00013698,2]
[346487109,1735006236179,-671.79,0.00013698,2]
[346487110,1735006236189,-501.85589247,0.00013698,2]
[346487111,1735006236199,-500.0,0.00013698,2]
[346487112,1735006236208,-500.0,0.00013698,2]
[346487113,1735006236217,-500.0,0.00013698,2]
[346487114,1735006236227,-618.0,0.00013698,2]
[346487115,1735006236237,-662.01,0.00013698,2]
[346487116,1735006236246,-500.0,0.00013698,2]
[346487117,1735006236256,-520.60100532,0.00013698,2]
[346487118,1735006236266,-500.0,0.00013698,2]
[346487119,1735006236276,-1602.92,0.00013698,2]
[346487120,1735006236285,-500.0,0.00013698,2]
[346487121,1735006236296,-500.0,0.00013698,2]
[346487122,1735006236306,-624.0,0.00013698,2]
[346487123,1735006236315,-620.06,0.00013698,2]
[346487124,1735006236325,-500.0,0.00013698,2]
[346487125,1735006236335,-500.0,0.00013698,2]
[346487126,1735006236344,-500.0,0.00013698,2]
[346487127,1735006236354,-824.95,0.00013698,2]
[346487128,1735006236364,-519.28464407,0.00013698,2]
[346487129,1735006236373,-910.23,0.00013698,2]
[346487130,1735006236382,-500.0,0.00013698,2]
[346487131,1735006236392,-500.0,0.00013698,2]
[346487132,1735006236401,-500.0,0.00013698,2]
[346487133,1735006236410,-500.0,0.00013698,2]
[346487134,1735006236419,-500.0,0.00013698,2]
[346487135,1735006236429,-500.0,0.00013698,2]
[346487136,1735006236439,-500.0,0.00013698,2]
[346487137,1735006236450,-746.39,0.00013698,2]
[346487138,1735006236461,-790.59,0.00013698,2]
[346487139,1735006236472,-596.22,0.00013698,2]
[346487140,1735006236483,-616.63,0.00013698,2]
[346487141,1735006236501,-500.0,0.00013698,2]
[346487142,1735006236512,-500.0,0.00013698,2]
[346487143,1735006236522,-772.19,0.00013698,2]
[346487144,1735006236532,-613.51,0.00013698,2]
[346487145,1735006236542,-500.0,0.00013698,2]
[346487146,1735006236552,-500.0,0.00013698,2]
[346487147,1735006236562,-500.0,0.00013698,2]
[346487148,1735006236571,-686.02,0.00013698,2]
[346487149,1735006236580,-1107.23,0.00013698,2]
[346487150,1735006236589,-539.08,0.00013698,2]
[346487151,1735006236599,-723.93,0.00013698,2]
[346487152,1735006236608,-503.01,0.00013698,2]
[346487153,1735006236616,-500.0,0.00013698,2]
[346487154,1735006236625,-500.0,0.00013698,2]
[346487155,1735006236634,-521.83,0.00013698,2]
[346487156,1735006236643,-500.0,0.00013698,2]
[346487157,1735006236653,-500.0,0.00013698,2]
[346487158,1735006236662,-916.41,0.00013698,2]
[346487159,1735006236671,-500.0,0.00013698,2]
[346487160,1735006236680,-875.28,0.00013698,2]
[346487161,1735006236689,-536.36,0.00013698,2]
[346487162,1735006236698,-5162.84,0.00013698,2]
[346487163,1735006236707,-500.0,0.00013698,2]
[346487164,1735006236720,-1709.54,0.00013698,2]
[346487165,1735006236730,-500.0,0.00013698,2]
[346487166,1735006236739,-505.27787327,0.00013698,2]
[346487167,1735006236748,-2683.94,0.00013698,2]
[346487168,1735006236758,-544.63,0.00013698,2]
[346487169,1735006236767,-409.46766709,0.00013698,2]
[346487170,1735006236777,-500.0,0.00013698,2]
[346487171,1735006236786,-747.54,0.00013698,2]
[346487172,1735006236795,-500.0,0.00013698,2]
[346487173,1735006236805,-500.0,0.00013698,2]
[346487174,1735006236815,-975.99,0.00013698,2]
[346487175,1735006236825,-500.0,0.00013698,2]
[346487176,1735006236834,-500.0,0.00013698,2]
[346487177,1735006236843,-951.36,0.00013698,2]
[346487178,1735006236853,-500.0,0.00013698,2]
[346487179,1735006236862,-500.0,0.00013698,2]
[346487180,1735006236871,-2498.7,0.00013698,2]
[346487181,1735006236880,-500.0,0.00013698,2]
[346487182,1735006236890,-1267.97,0.00013698,2]
[346487183,1735006236899,-508.18132233,0.00013698,2]
[346487184,1735006236909,-500.0,0.00013698,2]
[346487185,1735006236919,-634.93,0.00013698,2]
[346487186,1735006236928,-850.69,0.00013698,2]
[346487187,1735006236938,-500.0,0.00013698,2]
[346487188,1735006236947,-500.0,0.00013698,2]
[346487189,1735006236957,-803.04,0.00013698,2]
[346487190,1735006236967,-500.0,0.00013698,2]
[346487191,1735006236976,-1294.23,0.00013698,2]
[346487192,1735006236985,-500.0,0.00013698,2]
[346487193,1735006236995,-689.74,0.00013698,2]
[346487194,1735006237004,-500.0,0.00013698,2]
[346487195,1735006237014,-500.0,0.00013698,2]
[346487196,1735006237024,-804.35,0.00013698,2]
[346487197,1735006237033,-500.0,0.00013698,2]
[346487198,1735006237042,-500.0,0.00013698,2]
[346487199,1735006237052,-500.0,0.00013698,2]
[346487200,1735006237060,-2396.0,0.00013698,2]
[346487201,1735006237070,-500.0,0.00013698,2]
[346487202,1735006237080,-676.12,0.00013698,2]
[346487203,1735006237093,-500.0,0.00013698,2]
[346487204,1735006237102,-2349.8,0.00013698,2]
[346487205,1735006237112,-4439.88,0.00013698,2]
[346487206,1735006237121,-500.0,0.00013698,2]
[346487207,1735006237131,-1614.75,0.00013698,2]
[346487208,1735006237140,-7316.26,0.00013698,2]
[346487209,1735006237150,-501.9678911,0.00013698,2]
[346487210,1735006237161,-500.0,0.00013698,2]
[346487211,1735006237170,-1761.68,0.00013698,2]
[346487212,1735006237180,-500.0,0.00013698,2]
[346487213,1735006237190,-504.30199773,0.00013698,2]
[346487214,1735006237199,-707.0,0.00013698,2]
[346487215,1735006237209,-953.37,0.00013698,2]
[346487216,1735006237218,-7559.23,0.00013698,2]
[346487217,1735006237228,-500.0,0.00013698,2]
[346487218,1735006237238,-500.0,0.00013698,2]
[346487219,1735006237248,-251.57554994,0.00013698,2]
[346487220,1735006237257,-4754.72,0.00013698,2]
[346487221,1735006237267,-500.0,0.00013698,2]
[346487222,1735006237276,-503.98661609,0.00013698,2]
[346487223,1735006237286,-500.0,0.00013698,2]
[346487224,1735006237295,-1083.49,0.00013698,2]
[346487225,1735006237304,-511.63942788,0.00013698,2]
[346487226,1735006237314,-500.0,0.00013698,2]
[346487227,1735006237323,-500.0,0.00013698,2]
[346487228,1735006237333,-654.93,0.00013698,2]
[346487229,1735006237343,-1003.64,0.00013698,2]
[346487230,1735006237352,-3339.62,0.00013698,2]
[346487231,1735006237362,-598.29,0.00013698,2]
[346487232,1735006237372,-1817.78,0.00013698,2]
[346487233,1735006237383,-650.88,0.00013698,2]
[346487234,1735006237392,-500.0,0.00013698,2]
[346487235,1735006237402,-711.32,0.00013698,2]
[346487236,1735006237412,-1056.32,0.00013698,2]
[346487237,1735006237421,-780.62,0.00013698,2]
[346487238,1735006237430,-728.05,0.00013698,2]
[346487239,1735006237439,-3437.47,0.00013698,2]
[346487240,1735006237449,-500.0,0.00013698,2]
[346487241,1735006237458,-500.0,0.00013698,2]
[346487242,1735006237468,-2663.81,0.00013698,2]
[346487243,1735006237478,-937.32,0.00013698,2]
[346487244,1735006237488,-500.0,0.00013698,2]
[346487245,1735006237497,-839.57,0.00013698,2]
[346487246,1735006237507,-500.0,0.00013698,2]
[346487247,1735006237516,-500.0,0.00013698,2]
[346487248,1735006237526,-1458.18,0.00013698,2]
[346487249,1735006237535,-1187.54,0.00013698,2]
[346487250,1735006237545,-3085.09,0.00013698,2]
[346487251,1735006237554,-500.0,0.00013698,2]
[346487252,1735006237563,-18255.59,0.00013698,2]
[346487253,1735006237572,-500.0,0.00013698,2]
[346487254,1735006237582,-710.8,0.00013698,2]
[346487255,1735006237591,-500.0,0.00013698,2]
[346487256,1735006237600,-2644.66,0.00013698,2]
[346487257,1735006237610,-507.2,0.00013698,2]
[346487258,1735006237619,-1044.6,0.00013698,2]
[346487259,1735006237628,-832.11,0.00013698,2]
[346487260,1735006237637,-1216.15,0.00013698,2]
[346487261,1735006237646,-4180.19,0.00013698,2]
[346487262,1735006237656,-788.46,0.00013698,2]
[346487263,1735006237666,-500.0,0.00013698,2]
[346487264,1735006237675,-500.0,0.00013698,2]
[346487265,1735006237684,-1271.64,0.00013698,2]
[346487266,1735006237693,-500.0,0.00013698,2]
[346487267,1735006237702,-500.0,0.00013698,2]
[346487268,1735006237712,-500.0,0.00013698,2]
[346487269,1735006237721,-1115.61,0.00013698,2]
[346487270,1735006237730,-2374.03,0.00013698,2]
[346487271,1735006237739,-4938.04,0.00013698,2]
[346487272,1735006237748,-997.28,0.00013698,2]
[346487273,1735006237758,-585.2,0.00013698,2]
[346487274,1735006237767,-500.0,0.00013698,2]
[346487275,1735006237776,-315.75771479,0.00013698,2]
[346487276,1735006237786,-500.0,0.00013698,2]
[346487277,1735006237795,-1374.43,0.00013698,2]
[346487278,1735006237805,-2173.43,0.00013698,2]
[346487279,1735006237814,-500.0,0.00013698,2]
[346487280,1735006237824,-2181.53,0.00013698,2]
[346487281,1735006237833,-1718.63,0.00013698,2]
[346487282,1735006237843,-1484.21,0.00013698,2]
[346487283,1735006237852,-898.14,0.00013698,2]
[346487284,1735006237861,-634.87,0.00013698,2]
[346487285,1735006237871,-500.0,0.00013698,2]
[346487286,1735006237880,-500.0,0.00013698,2]
[346487287,1735006237890,-605.68,0.00013698,2]
[346487288,1735006237899,-1538.74,0.00013698,2]
[346487289,1735006237908,-661.47,0.00013698,2]
[346487290,1735006237917,-2198.7,0.00013698,2]
[346487291,1735006238135,-1013.68,0.00013698,2]
[346487292,1735006238145,-714.74,0.00013698,2]
[346487293,1735006238155,-1709.85,0.00013698,2]
[346487294,1735006238165,-2411.07,0.00013698,2]
[346487295,1735006238175,-500.0,0.00013698,2]
[346487296,1735006238185,-988.19,0.00013698,2]
[346487298,1735006238195,-500.0,0.00013698,2]
[346487299,1735006238204,-1330.95,0.00013698,2]
[346487300,1735006238214,-3476.31,0.00013698,2]
[346487301,1735006238223,-726.74058852,0.00013698,2]
[346487302,1735006238678,-1048.81941148,0.00013698,2]
[346487303,1735006238688,-258.9618756,0.00013698,2]
[346487393,1735006239794,-739.5869,0.00013598,2]
[346487395,1735006239804,-411.89062499,0.00013698,2]
[346487397,1735006239816,-1067.03749941,0.00013698,2]
[346487399,1735006239825,-500.0,0.00013698,2]
[346487401,1735006239835,-372.56250059,0.00013698,2]
[346487404,1735006239846,-1038.63749941,0.00013698,2]
[346487406,1735006239855,-763.17,0.00013698,2]
[346487408,1735006239864,-488.50110595,0.00013698,2]
[346487508,1735006240850,-507.33,0.00013698,2]
[346487627,1735006243533,-1134.78380625,0.00013698,2]
[346487628,1735006243787,-8817.7250878,0.00013698,2]
[346487629,1735006243796,-2301.58,0.00013698,2]
[346487630,1735006243806,-4281.06,0.00013698,2]
[346487631,1735006243816,-1968.0,0.00013698,2]
[346487632,1735006243826,-500.0,0.00013698,2]
[346487633,1735006243835,-3886.68,0.00013698,2]
[346487634,1735006243844,-500.0,0.00013698,2]
[346487635,1735006243853,-822.16,0.00013698,2]
[346487636,1735006243862,-3016.26,0.00013698,2]
[346487637,1735006243873,-968.73,0.00013698,2]
[346487638,1735006243882,-1227.33,0.00013698,2]
[346487639,1735006243891,-2329.21,0.00013698,2]
[346487640,1735006243900,-151.0,0.00013698,2]
[346487641,1735006243909,-500.0,0.00013698,2]
[346487642,1735006243918,-643.28,0.00013698,2]
[346487643,1735006243927,-659.51,0.00013698,2]
[346487644,1735006243936,-151.0,0.00013698,2]
[346487645,1735006243945,-2003.65,0.00013698,2]
[346487646,1735006243954,-500.0,0.00013698,2]
[346487647,1735006243963,-500.0,0.00013698,2]
[346487648,1735006243974,-500.0,0.00013698,2]
[346487649,1735006243983,-13435.95,0.00013698,2]
[346487651,1735006243992,-500.0,0.00013698,2]
[346487653,1735006244001,-2280.95,0.00013698,2]
[346487655,1735006244010,-4494.85523582,0.00013698,2]
[346487657,1735006244022,-500.99454026,0.00013698,2]
[346487660,1735006246554,-378.78294716,0.00013698,2]
[346487661,1735006246567,-448.56727676,0.00013698,2]
[346487662,1735006246576,-364.93272324,0.00013698,2]
[346487663,1735006246587,-981.89727676,0.00013698,2]
[346487664,1735006246596,-820.4,0.00013698,2]
[346487665,1735006246605,-1604.79,0.00013698,2]
[346487666,1735006246614,-623.04,0.00013698,2]
[346487667,1735006246624,-711.14,0.00013698,2]
[346487668,1735006246633,-4568.23,0.00013698,2]
[346487669,1735006246642,-500.0,0.00013698,2]
[346487670,1735006246651,-2521.65,0.00013698,2]
[346487671,1735006246660,-500.0,0.00013698,2]
[346487672,1735006246669,-1195.77,0.00013698,2]
[346487673,1735006246678,-512.37,0.00013698,2]
[346487674,1735006246688,-2427.77,0.00013698,2]
[346487675,1735006246698,-500.0,0.00013698,2]
[346487676,1735006246707,-1768.87,0.00013698,2]
[346487677,1735006246716,-500.0,0.00013698,2]
[346487678,1735006246725,-2509.9,0.00013698,2]
[346487679,1735006246735,-500.0,0.00013698,2]
[346487680,1735006246744,-814.66,0.00013698,2]
[346487681,1735006246753,-1022.37381796,0.00013698,2]
[346487682,1735006246764,-397.40618204,0.00013698,2]
[346487683,1735006246773,-2607.51,0.00013698,2]
[346487684,1735006246782,-937.12,0.00013698,2]
[346487685,1735006246791,-1768.13,0.00013698,2]
[346487686,1735006246800,-500.0,0.00013698,2]
[346487687,1735006246809,-3116.74,0.00013698,2]
[346487688,1735006246817,-2660.59,0.00013698,2]
[346487689,1735006246826,-4487.72,0.00013698,2]
[346487690,1735006246836,-995.08,0.00013698,2]
[346487691,1735006246845,-799.32,0.00013698,2]
[346487692,1735006246854,-612.02,0.00013698,2]
[346487693,1735006246862,-845.33,0.00013698,2]
[346487694,1735006246871,-717.81,0.00013698,2]
[346487695,1735006246881,-1738.27,0.00013698,2]
[346487696,1735006246890,-3425.39936716,0.00013698,2]
[346487697,1735006246901,-2889.36133,0.00013698,2]
[346487698,1735006246990,-313.5505372,0.00013698,2]
[346487702,1735006620161,639.2,0.00010912,2]
[346487703,1735006822201,515.5749,0.00026552,60]
[346487706,1735007070428,175.17,0.00010137,2]
[346487707,1735007138733,38716.83599073,0.00026562,120]
[346487708,1735007169215,1067.0,0.00012055,2]